bitfinex-derivatives/quotes_SOLF0:USTF0_20230103
["timestamp","ask_amount","ask_price","bid_price","bid_amount"]
[1672756591830,12.29,12.382,12.373,0.06740519]
[1672756592453,12.29,12.379,12.373,0.06740519]
[1672756592668,12.29,12.376,12.373,0.06740519]
[1672756592878,12.29,12.376,12.37,0.06969425]
[1672756593091,12.29,12.376,12.369,0.06948728]
[1672756595725,12.29,12.372,12.369,0.06948728]
[1672756596029,12.29,12.37,12.366,0.0626424]
[1672756596246,12.29,12.367,12.366,0.0626424]
[1672756596455,12.29,12.367,12.362,0.07055918]
[1672756596665,12.29,12.367,12.36,5.07022612]
[1672756599502,12.29,12.367,12.36,0.07022612]
[1672756600235,12.0590918,12.367,12.36,0.07022612]
[1672756602129,12.29,12.363,12.36,0.07022612]
[1672756602339,12.29,12.363,12.357,5.06107004]
[1672756603281,12.29,12.366,12.357,5.06107004]
[1672756604544,12.29,12.358,12.357,0.06107004]
[1672756604753,12.29,12.358,12.353,0.0638359]
[1672756605166,12.25,12.366,12.353,0.0638359]
[1672756605598,12.25,12.366,12.353,5.0638359]
[1672756605802,12.25,12.366,12.353,50.1217359]
[1672756606014,12.25,12.366,12.354,5.0]
[1672756606220,12.25,12.366,12.356,0.06364804]
[1672756607386,12.28,12.363,12.356,0.06364804]
[1672756607593,12.28,12.363,12.355,0.06440598]
[1672756608017,12.29,12.357,12.355,0.06440598]
[1672756608226,12.29,12.357,12.352,0.06840166]
[1672756608434,12.29,12.353,12.352,0.06840166]
[1672756608643,12.29,12.353,12.348,5.06710309]
[1672756609375,12.29,12.35,12.348,5.06710309]
[1672756609586,12.29,12.35,12.345,5.07108663]
[1672756610425,12.29,12.346,12.345,0.07108663]
[1672756610641,12.29,12.346,12.341,0.06092724]
[1672756611267,12.19,12.343,12.341,0.06092724]
[1672756611475,12.29,12.346,12.338,0.06383279]
[1672756611686,12.29,12.346,12.338,5.06415179]
[1672756611902,12.29,12.342,12.338,5.06415179]
[1672756612113,12.29,12.342,12.338,5.0]
[1672756612426,12.29,12.342,12.336,0.06107626]
[1672756613055,12.19,12.339,12.336,0.06107626]
[1672756613370,0.21297091,12.336,12.333,0.06063448]
[1672756613581,0.21297091,12.336,12.33,5.06578244]
[1672756614420,0.21297091,12.336,12.33,0.06578244]
[1672756615049,12.29,12.333,12.33,0.06578244]
[1672756615259,12.29,12.333,12.327,0.06249657]
[1672756615472,12.29,12.328,12.326,0.06062329]
[1672756615786,12.29,12.328,12.323,0.06490583]
[1672756615997,12.29,12.325,12.321,0.06612732]
[1672756616524,0.21297091,12.336,12.321,0.06612732]
[1672756616835,0.21297091,12.336,12.324,0.06648118]
[1672756617461,0.21297091,12.336,12.324,5.06648118]
[1672756617881,12.29,12.331,12.324,5.06648118]
[1672756618305,12.29,12.331,12.324,0.06648118]
[1672756619988,12.29,12.327,12.324,0.06648118]
[1672756620196,0.21297091,12.336,12.324,5.0]
[1672756620513,0.21297091,12.336,12.326,0.06115452]
[1672756621772,0.21297091,12.336,12.326,5.06115452]
[1672756622510,12.29,12.332,12.326,5.06115452]
[1672756622717,12.29,12.332,12.326,0.06115452]
[1672756623773,4.52543826,12.34,12.326,5.0]
[1672756624088,2660.86500803,12.542,12.326,5.0]
[1672756624089,12.29,12.344,12.329,0.06402568]
[1672756624294,12.29,12.348,12.332,0.06808915]
[1672756624500,12.29,12.348,12.336,0.07092166]
[1672756624713,12.29,12.348,12.338,0.06767073]
[1672756624920,12.29,12.348,12.339,0.06579938]
[1672756625129,12.29,12.348,12.339,0.06441702]
[1672756626715,17.28,12.359,12.339,12.29441702]
[1672756626922,17.28,12.359,12.345,0.07094852]
[1672756627134,17.28,12.359,12.348,0.06024749]
[1672756627344,17.28,12.359,12.349,0.0675052]
[1672756627345,12.28,12.359,12.349,0.0675052]
[1672756627553,12.28,12.359,12.35,0.06806318]
[1672756627763,12.28,12.359,12.35,0.07116114]
[1672756628078,17.29,12.362,12.35,0.07116114]
[1672756628289,12.29,12.362,12.35,0.07116114]
[1672756628918,12.29,12.359,12.35,0.07116114]
[1672756629128,12.29,12.359,12.35,0.06749309]
[1672756629338,5.0,12.358,12.35,0.06749309]
[1672756629759,12.29,12.359,12.35,0.06749309]
[1672756631760,12.29,12.362,12.35,0.06749309]
[1672756631964,12.29,12.362,12.352,0.06919148]
[1672756633221,5.0,12.357,12.352,0.06919148]
[1672756633642,12.29,12.358,12.352,0.06919148]
[1672756635014,12.29,12.369,12.352,12.35919148]
[1672756635223,12.29,12.372,12.356,0.06713442]
[1672756635436,5.0,12.377,12.36,0.06048712]
[1672756635645,5.0,12.371,12.363,0.06612582]
[1672756635959,4.8249538,12.371,12.363,0.06361867]
[1672756637117,12.29,12.365,12.363,0.06361867]
[1672756637323,12.29,12.365,12.36,0.0668816]
[1672756637535,12.29,12.365,12.358,0.06752589]
[1672756638168,12.19,12.368,12.358,0.06752589]
[1672756638379,12.19,12.368,12.359,0.06222013]
[1672756639321,12.29,12.362,12.359,0.06222013]
[1672756639640,12.29,12.362,12.356,0.06317177]
[1672756639846,49.16,12.366,12.353,5.0]
[1672756639847,12.29,12.357,12.353,0.3532555]
[1672756640057,12.29,12.354,12.35,5.0]
[1672756640476,12.29,12.351,12.345,5.0]
[1672756640689,12.29,12.346,12.343,5.0]
[1672756641525,12.29,12.346,12.34,0.06152909]
[1672756641736,12.29,12.342,12.34,0.06152909]
[1672756642054,12.29,12.342,12.337,0.06503646]
[1672756642270,12.29,12.338,12.335,0.07045817]
[1672756642476,12.29,12.338,12.332,0.06589407]
[1672756642898,12.29,12.344,12.333,5.0]
[1672756643837,12.29,12.347,12.334,0.06921509]
[1672756644045,12.29,12.351,12.336,0.07048989]
[1672756644264,12.29,12.351,12.339,0.0711972]
[1672756644682,12.29,12.347,12.339,0.0711972]
[1672756644894,12.29,12.347,12.339,0.06300462]
[1672756645420,12.29,12.344,12.339,0.06300462]
[1672756645631,12.29,12.344,12.337,0.06975122]
[1672756647101,12.29,12.341,12.337,0.06975122]
[1672756648248,1.5,12.346,12.337,0.06975122]
[1672756648674,1.5,12.346,12.337,5.06975122]
[1672756648888,12.29,12.344,12.337,5.06975122]
[1672756650457,50.0,12.338,12.301,49.09]
[1672756650673,60.79,12.337,12.308,970.6205595]
[1672756650883,5.0,12.337,12.323,17.18567266]
[1672756651088,65.8,12.336,12.323,17.18567266]
[1672756651509,0.0702141,12.334,12.325,0.06197845]
[1672756651826,122.9,12.323,12.309,5.0]
[1672756652036,5.0,12.333,12.308,970.6205595]
[1672756652350,0.13006777,12.322,12.309,5.0]
[1672756652563,53.77,12.342,12.309,51.9011]
[1672756652772,12.29,12.334,12.314,12.29]
[1672756653090,12.29,12.332,12.315,50.3385]
[1672756653293,12.29,12.325,12.315,5.0]
[1672756653618,42.08935065,12.332,12.315,5.0]
[1672756653928,12.29,12.325,12.319,0.06194671]
[1672756654130,12.29,12.322,12.319,0.06194671]
[1672756654342,12.29,12.322,12.316,0.0713998]
[1672756654773,12.29,12.318,12.316,0.0713998]
[1672756655085,5.0,12.329,12.315,5.0]
[1672756655294,12.29,12.318,12.315,5.0]
[1672756655603,60.50162869,12.33,12.315,5.0]
[1672756655819,12.29,12.318,12.315,5.0]
[1672756656021,12.29,12.316,12.312,5.06087642]
[1672756656237,12.29,12.316,12.312,5.0]
[1672756656446,12.26,12.315,12.312,5.0]
[1672756656656,55.0,12.328,12.313,0.06398589]
[1672756656863,5.0,12.328,12.312,5.0]
[1672756657185,7.41987013,12.326,12.317,5.0]
[1672756657395,5.0,12.333,12.317,5.06732763]
[1672756657709,5.0,12.333,12.32,0.06949236]
[1672756657919,12.29,12.326,12.32,0.06949236]
[1672756658335,49.03,12.334,12.32,0.06949236]
[1672756658545,52.46,12.342,12.323,0.06392742]
[1672756658760,12.29,12.338,12.327,0.06988411]
[1672756658972,5.0,12.341,12.327,0.06988411]
[1672756660023,5.0,12.343,12.327,0.06988411]
[1672756660338,12.29,12.337,12.331,0.06376223]
[1672756660654,12.29,12.341,12.331,0.06376223]
[1672756660861,12.29,12.341,12.332,0.06380105]
[1672756661071,12.29,12.338,12.332,5.06958553]
[1672756661386,12.17,12.334,12.332,5.06958553]
[1672756661597,61.33,12.334,12.329,0.07008515]
[1672756661811,12.29,12.33,12.327,0.06448801]
[1672756662016,12.29,12.33,12.324,5.06284024]
[1672756662224,12.29,12.326,12.324,5.06284024]
[1672756662545,12.29,12.326,12.323,5.0]
[1672756662758,61.33,12.323,12.308,970.6205595]
[1672756662967,12.29,12.314,12.308,970.6205595]
[1672756664016,0.91944162,12.314,12.309,5.07035002]
[1672756664227,12.29,12.313,12.309,5.07035002]
[1672756664435,0.07057961,12.317,12.309,5.07035002]
[1672756664647,12.29,12.313,12.309,5.07035002]
[1672756665069,0.91897986,12.313,12.309,5.07035002]
[1672756665589,0.07057961,12.317,12.309,5.07035002]
[1672756666215,0.99140631,12.319,12.309,5.07035002]
[1672756666427,12.29,12.319,12.309,5.0]
[1672756666955,12.29,12.316,12.309,5.0]
[1672756667163,0.92036505,12.316,12.309,5.06425428]
[1672756667369,12.29,12.316,12.313,0.06634751]
[1672756667582,5.0,12.322,12.308,970.6205595]
[1672756667801,49.16,12.312,12.31,0.0617828]
[1672756668004,61.27,12.312,12.309,5.0]
[1672756668220,12.29,12.31,12.309,5.0]
[1672756668532,1.6,12.313,12.308,970.6205595]
[1672756668743,5.0,12.322,12.309,5.0]
[1672756668953,12.29,12.319,12.311,0.0707638]
[1672756669792,48.94,12.334,12.312,5.0]
[1672756670005,12.19,12.324,12.317,0.07011004]
[1672756670209,12.29,12.32,12.316,0.06818461]
[1672756670424,12.29,12.32,12.314,0.06547767]
[1672756670950,12.29,12.323,12.315,5.0]
[1672756671263,0.82544119,12.323,12.315,5.06582685]
[1672756671480,12.29,12.32,12.315,5.06582685]
[1672756671677,12.26,12.316,12.315,5.06582685]
[1672756671887,12.26,12.316,12.314,5.0]
[1672756672105,12.26,12.316,12.311,0.06382844]
[1672756672316,12.29,12.312,12.311,0.06382844]
[1672756672522,12.29,12.312,12.307,0.06338642]
[1672756673049,12.29,12.311,12.309,5.0]
[1672756673253,12.29,12.314,12.31,0.0692748]
[1672756673470,12.29,12.314,12.309,5.0]
[1672756673681,12.29,12.314,12.308,970.6917822]
[1672756674306,1.2,12.319,12.309,5.0]
[1672756674516,1.2,12.319,12.309,49.4779]
[1672756674723,1.2,12.319,12.31,5.0]
[1672756675255,1.2,12.319,12.311,5.0]
[1672756675465,1.2,12.319,12.311,5.06906284]
[1672756675676,12.29,12.323,12.311,5.06906284]
[1672756676091,5.0,12.333,12.311,5.06906284]
[1672756676092,12.29,12.327,12.311,5.06906284]
[1672756676307,37.00243704,12.338,12.315,0.06597437]
[1672756676513,12.29,12.332,12.322,0.06402539]
[1672756676724,12.29,12.329,12.323,0.06412528]
[1672756676933,5.0,12.331,12.322,0.06202159]
[1672756677142,37.00243704,12.329,12.326,27.14997733]
[1672756677357,12.29,12.327,12.326,26.23284492]
[1672756677567,9.4,12.326,12.322,0.06430217]
[1672756677779,12.29,12.323,12.322,0.06430217]
[1672756678093,12.29,12.323,12.318,0.06818195]
[1672756678298,12.28,12.32,12.316,0.06504316]
[1672756678504,12.29,12.317,12.316,0.06504316]
[1672756678719,12.29,12.317,12.312,0.06023595]
[1672756678929,12.29,12.311,12.31,0.06680308]
[1672756679140,12.29,12.311,12.309,5.0]
[1672756679346,12.29,12.311,12.306,0.07070869]
[1672756683032,12.29,12.307,12.306,0.07070869]
[1672756683347,12.29,12.307,12.302,0.07087015]
[1672756683561,12.29,12.307,12.3,0.06954472]
[1672756683770,1.0,12.31,12.301,5.0]
[1672756686185,12.29,12.311,12.301,5.0]
[1672756686403,5.0,12.318,12.301,5.0]
[1672756686611,5.0,12.319,12.305,0.07110157]
[1672756686925,12.29,12.315,12.308,0.06854636]
[1672756688392,12.29,12.318,12.308,0.06854636]
[1672756688600,12.28,12.32,12.309,5.07103228]
[1672756688809,12.28,12.32,12.31,0.06284153]
[1672756689336,12.29,12.316,12.31,0.06284153]
[1672756689549,5.0,12.315,12.309,5.0711129]
[1672756689863,12.29,12.316,12.309,5.0711129]
[1672756690074,12.29,12.316,12.309,0.0711129]
[1672756690280,12.29,12.313,12.309,0.0711129]
[1672756690698,5.0,12.312,12.309,0.0711129]
[1672756690915,5.0,12.312,12.306,0.07121447]
[1672756691335,12.29,12.313,12.306,0.07121447]
[1672756692177,12.29,12.309,12.306,0.07121447]
[1672756692390,12.29,12.309,12.303,0.06997638]
[1672756692591,5.0,12.311,12.303,0.06997638]
[1672756693231,12.39,12.312,12.303,0.06997638]
[1672756694598,1.2,12.313,12.303,0.06997638]
[1672756695018,1.2,12.313,12.303,5.06997638]
[1672756695229,1.2,12.313,12.303,51.30247638]
[1672756697960,12.29,12.316,12.303,51.30247638]
[1672756698382,12.29,12.316,12.304,48.8303]
[1672756698593,1.6,12.313,12.306,0.06725103]
[1672756699229,12.29,12.312,12.306,0.06725103]
[1672756699437,49.29243704,12.307,12.247,587.28]
[1672756699651,54.6,12.312,12.288,48.8303]
[1672756699960,5.0,12.306,12.293,27.36865886]
[1672756700167,5.0,12.306,12.294,5.0]
[1672756700384,49.29243704,12.295,12.293,27.36865886]
[1672756700593,12.29,12.295,12.293,27.36865886]
[1672756700803,5.0,12.294,12.29,0.06428156]
[1672756701008,12.29,12.291,12.29,0.06428156]
[1672756701223,12.29,12.291,12.286,0.06323351]
[1672756701533,12.29,12.288,12.284,0.06054398]
[1672756702270,0.06298097,12.29,12.284,0.06054398]
[1672756703218,12.29,12.287,12.284,0.06054398]
[1672756703432,12.29,12.287,12.282,48.8303]
[1672756703433,37.00243704,12.285,12.282,48.8303]
[1672756703634,12.29,12.284,12.281,0.06328715]
[1672756703848,5.0,12.283,12.279,27.41075277]
[1672756704056,12.29,12.284,12.279,27.41075277]
[1672756704267,5.0,12.294,12.28,5.0]
[1672756704476,37.00243704,12.282,12.28,5.0]
[1672756704688,49.29243704,12.282,12.279,27.41075277]
[1672756704896,12.29,12.282,12.279,27.41075277]
[1672756705206,12.19,12.285,12.279,27.41075277]
[1672756705422,49.29243704,12.292,12.28,5.0]
[1672756705631,5.0,12.291,12.282,0.06042525]
[1672756705844,12.29,12.296,12.282,0.06042525]
[1672756706054,5.0,12.301,12.285,0.06553763]
[1672756706261,5.0,12.301,12.288,0.06884886]
[1672756706471,41.92,12.301,12.288,0.06884886]
[1672756706678,5.0,12.299,12.288,0.06884886]
[1672756707099,12.29,12.291,12.288,0.06884886]
[1672756707311,12.29,12.295,12.285,5.06847416]
[1672756707528,5.0,12.309,12.286,53.20820079]
[1672756707738,12.29,12.303,12.291,0.06880063]
[1672756708056,5.0,12.312,12.287,5.0]
[1672756708057,5.0,12.316,12.293,0.06308664]
[1672756708265,12.29,12.314,12.3,0.06530086]
[1672756708475,12.28,12.317,12.303,0.07116667]
[1672756708687,37.00243704,12.312,12.306,0.06011711]
[1672756708993,5.0,12.311,12.305,0.07051648]
[1672756709209,5.0,12.311,12.304,0.06769255]
[1672756709419,5.0,12.311,12.299,5.0]
[1672756709420,5.0,12.306,12.303,0.06715276]
[1672756709625,5.0,12.303,12.3,0.06230768]
[1672756709835,12.29,12.301,12.298,48.1467]
[1672756710043,12.29,12.301,12.297,0.06411611]
[1672756712572,12.29,12.298,12.297,0.06411611]
[1672756712888,0.06,12.297,12.293,0.06199966]
[1672756713098,12.28,12.294,12.291,0.0667066]
[1672756713414,12.28,12.294,12.288,0.06657396]
[1672756713625,12.26,12.29,12.287,0.06660914]
[1672756713836,12.26,12.29,12.284,45.05056979]
[1672756714045,12.29,12.287,12.284,45.05056979]
[1672756714361,12.29,12.287,12.285,5.0]
[1672756714990,12.29,12.287,12.281,0.06125274]
[1672756716461,17.28,12.29,12.281,0.06125274]
[1672756716670,17.28,12.29,12.282,12.99756296]
[1672756716883,12.28,12.29,12.283,5.0]
[1672756718774,12.28,12.29,12.281,0.06125274]
[1672756719406,12.29,12.286,12.281,0.06125274]
[1672756719721,12.29,12.283,12.281,0.06125274]
[1672756719931,12.29,12.283,12.279,27.41075277]
[1672756720343,6.69266092,12.289,12.279,27.41075277]
[1672756720558,12.29,12.28,12.279,27.41075277]
[1672756720770,12.19,12.288,12.28,5.0]
[1672756720980,12.29,12.291,12.28,5.06965561]
[1672756721184,5.0,12.302,12.281,48.4133]
[1672756721396,5.0,12.302,12.285,0.06761921]
[1672756721610,12.29,12.3,12.289,0.06613378]
[1672756722240,12.29,12.296,12.289,0.06613378]
[1672756722451,12.29,12.29,12.289,0.06613378]
[1672756722660,12.29,12.292,12.285,0.0682174]
[1672756722867,12.29,12.292,12.284,51.25064349]
[1672756723399,12.29,12.296,12.284,51.25064349]
[1672756723609,12.29,12.296,12.286,0.06394809]
[1672756723820,12.29,12.303,12.29,0.06081018]
[1672756724030,12.29,12.303,12.292,0.06413618]
[1672756725502,12.29,12.299,12.292,0.06413618]
[1672756725712,12.29,12.299,12.291,0.07001233]
[1672756726030,37.00243704,12.304,12.291,0.07001233]
[1672756726031,12.29,12.296,12.291,0.07001233]
[1672756726240,12.29,12.296,12.291,27.4807651]
[1672756726452,12.29,12.299,12.292,5.0]
[1672756726759,17.26,12.303,12.292,5.0]
[1672756728028,12.29,12.307,12.292,5.0]
[1672756728239,17.29,12.314,12.295,0.06680488]
[1672756728554,17.29,12.314,12.299,0.06755525]
[1672756728762,54.29243704,12.314,12.299,0.06755525]
[1672756729392,12.29,12.31,12.302,0.06979557]
[1672756733817,1.1,12.31,12.302,0.06979557]
[1672756734550,49.29243704,12.314,12.303,5.0]
[1672756734758,37.00243704,12.314,12.303,5.0]
[1672756735391,17.29,12.318,12.303,5.0]
[1672756735601,17.29,12.318,12.306,0.06772251]
[1672756736020,12.29,12.318,12.306,0.06772251]
[1672756736965,37.00243704,12.314,12.306,0.06772251]
[1672756737280,5.0,12.313,12.306,0.06772251]
[1672756737912,37.00243704,12.315,12.306,0.06772251]
[1672756739487,12.29,12.318,12.306,0.06772251]
[1672756739905,37.00243704,12.315,12.306,0.06772251]
[1672756740219,12.29,12.318,12.306,0.06772251]
[1672756740432,12.29,12.314,12.306,0.06772251]
[1672756742538,12.29,12.31,12.306,0.06772251]
[1672756743166,12.29,12.314,12.306,0.06772251]
[1672756743378,37.00243704,12.315,12.306,0.06772251]
[1672756743588,5.0,12.313,12.306,0.06772251]
[1672756744113,5.0,12.314,12.306,0.06772251]
[1672756744327,5.0,12.323,12.306,0.06772251]
[1672756744328,12.29,12.323,12.306,0.06772251]
[1672756744531,5.0,12.322,12.306,47.1213]
[1672756744748,12.29,12.312,12.31,0.06764499]
[1672756744954,12.29,12.312,12.307,5.06237296]
[1672756745163,12.29,12.312,12.307,0.06237296]
[1672756746104,12.29,12.315,12.307,0.06237296]
[1672756746314,5.0,12.322,12.307,0.06237296]
[1672756746531,5.0,12.322,12.31,0.06152284]
[1672756746954,58.68243704,12.326,12.31,0.06152284]
[1672756747154,58.68243704,12.326,12.313,0.06331824]
[1672756747366,9.4,12.326,12.314,12.29]
[1672756747574,0.39178421,12.333,12.321,12.21]
[1672756747785,37.00243704,12.336,12.323,0.06378565]
[1672756748209,12.28,12.339,12.323,0.06378565]
[1672756748423,12.19,12.342,12.327,0.0683478]
[1672756748634,12.19,12.342,12.33,0.06134496]
[1672756748845,12.29,12.335,12.332,0.06993522]
[1672756749159,12.29,12.333,12.329,0.06200231]
[1672756749368,12.29,12.33,12.327,0.06779875]
[1672756749579,12.29,12.33,12.326,5.0]
[1672756750001,12.29,12.33,12.325,27.41075277]
[1672756751051,12.29,12.326,12.325,27.41075277]
[1672756751261,12.29,12.326,12.317,5.0]
[1672756751471,12.29,12.321,12.317,5.0]
[1672756751891,12.29,12.321,12.314,32.26963538]
[1672756752307,12.29,12.321,12.314,32.33802471]
[1672756752945,0.06337711,12.322,12.314,32.33802471]
[1672756753471,1.5,12.329,12.316,5.0]
[1672756753686,1.5,12.329,12.317,12.29]
[1672756753995,12.19,12.338,12.317,56.6869]
[1672756754211,12.19,12.338,12.318,49.3969]
[1672756754422,12.29,12.331,12.324,0.0639837]
[1672756754630,12.29,12.334,12.323,0.06340803]
[1672756755684,12.29,12.337,12.323,0.06340803]
[1672756755897,12.29,12.337,12.326,0.06724967]
[1672756756095,12.29,12.34,12.326,0.06724967]
[1672756756312,12.29,12.34,12.329,0.06412956]
[1672756757571,12.29,12.344,12.33,5.0]
[1672756757781,17.19,12.35,12.333,0.06980949]
[1672756757990,12.19,12.35,12.337,0.07059922]
[1672756758419,12.29,12.353,12.337,0.07059922]
[1672756758735,12.29,12.353,12.341,0.06496955]
[1672756758936,12.29,12.346,12.341,0.06496955]
[1672756759358,12.29,12.35,12.341,0.06496955]
[1672756759564,12.29,12.353,12.341,0.06496955]
[1672756759990,12.29,12.357,12.341,0.06496955]
[1672756760201,12.29,12.357,12.345,0.0646254]
[1672756760932,12.29,12.35,12.345,0.0646254]
[1672756761146,17.18,12.366,12.343,0.06469667]
[1672756761147,12.29,12.347,12.343,0.06469667]
[1672756761353,12.29,12.347,12.341,0.06750795]
[1672756761564,12.29,12.349,12.341,0.06750795]
[1672756761777,12.29,12.349,12.34,5.0]
[1672756761987,12.29,12.349,12.341,0.06215537]
[1672756763036,17.29,12.355,12.341,0.06215537]
[1672756763248,12.29,12.355,12.344,0.06219416]
[1672756765669,12.29,12.348,12.344,0.06219416]
[1672756765984,12.29,12.348,12.343,5.0]
[1672756766298,12.29,12.348,12.342,5.06231918]
[1672756766928,12.29,12.351,12.342,5.06231918]
[1672756768505,12.11532138,12.351,12.342,5.06231918]
[1672756775237,12.29,12.345,12.342,0.06231918]
[1672756775447,5.0,12.355,12.34,5.0]
[1672756775762,12.29,12.349,12.343,0.06634589]
[1672756776182,12.29,12.352,12.343,0.06634589]
[1672756776392,12.29,12.352,12.343,0.06310844]
[1672756777119,12.29,12.349,12.343,0.06310844]
[1672756777338,12.29,12.349,12.342,0.06435208]
[1672756778914,12.29,12.352,12.342,0.06435208]
[1672756779125,12.29,12.352,12.343,0.06440696]
[1672756779437,12.29,12.352,12.343,5.06440696]
[1672756780589,12.29,12.347,12.343,5.06440696]
[1672756780801,12.29,12.347,12.343,5.0]
[1672756782069,12.29,12.347,12.341,0.06897918]
[1672756782279,12.29,12.342,12.341,0.06897918]
[1672756782495,12.29,12.342,12.337,5.07035622]
[1672756783854,12.29,12.348,12.337,5.07035622]
[1672756784071,12.29,12.35,12.338,45.68100328]
[1672756784276,12.29,12.35,12.34,0.06222319]
[1672756786062,12.29,12.35,12.34,5.06222319]
[1672756787318,12.19,12.356,12.34,5.06222319]
[1672756787530,12.19,12.356,12.344,0.07079011]
[1672756788265,12.19,12.356,12.344,5.07079011]
[1672756788474,12.19,12.356,12.345,5.0]
[1672756789216,12.29,12.347,12.345,5.0]
[1672756790054,12.29,12.35,12.345,5.0]
[1672756790265,12.29,12.35,12.344,5.07079011]
[1672756791838,12.29,12.353,12.344,5.07079011]
[1672756792050,12.29,12.353,12.344,5.07146288]
[1672756793630,12.29,12.349,12.344,0.07146288]
[1672756793939,12.29,12.346,12.342,5.07025189]
[1672756794145,12.29,12.346,12.34,0.07103373]
[1672756794352,12.29,12.343,12.34,0.07103373]
[1672756794564,12.29,12.343,12.337,5.06229177]
[1672756795619,12.29,12.343,12.337,0.06229177]
[1672756796880,12.13603539,12.343,12.337,0.06229177]
[1672756797409,12.26,12.346,12.337,0.06229177]
[1672756797830,1.7,12.349,12.337,0.06229177]
[1672756798034,12.29,12.35,12.337,0.06229177]
[1672756798774,12.29,12.35,12.338,5.0]
[1672756798991,12.29,12.35,12.34,0.06218201]
[1672756800141,12.29,12.357,12.34,0.06218201]
[1672756800352,12.29,12.357,12.338,17.29]
[1672756800353,12.29,12.357,12.344,0.07046619]
[1672756800666,12.29,12.357,12.356,12.99756296]
[1672756801505,12.29,12.357,12.352,0.06284096]
[1672756802980,12.19,12.361,12.352,0.06284096]
[1672756803394,12.29,12.365,12.353,1798.0]
[1672756803601,12.29,12.365,12.355,0.06712216]
[1672756803815,12.29,12.365,12.355,1798.06712216]
[1672756804028,4.34501618,12.373,12.36,0.06530406]
[1672756804346,12.28,12.371,12.362,0.06212782]
[1672756804557,12.29,12.368,12.362,0.06212782]
[1672756804769,12.29,12.365,12.361,0.07052337]
[1672756804974,12.29,12.365,12.359,0.06586272]
[1672756805604,5.0,12.376,12.359,0.06586272]
[1672756805814,5.0,12.385,12.363,0.06673866]
[1672756806131,5.0,12.385,12.37,0.06620581]
[1672756806443,5.0,12.385,12.373,0.06915649]
[1672756806655,5.0,12.491,12.375,0.06008782]
[1672756806865,5.0,12.491,12.377,0.06520481]
[1672756807076,5.0,12.491,12.378,0.062086]
[1672756807287,5.0,12.491,12.378,0.06286224]
[1672756807496,37.00243704,12.386,12.378,0.06286224]
[1672756807922,5.0,12.385,12.378,0.06286224]
[1672756808233,9.18,12.384,12.36,5.0]
[1672756808438,5.0,12.383,12.362,5.0]
[1672756808649,5.0,12.381,12.363,1798.0]
[1672756808856,16.13,12.38,12.364,5.0]
[1672756809068,37.07032008,12.376,12.365,1798.0]
[1672756809278,26.9,12.375,12.366,5.0]
[1672756809810,0.06788304,12.376,12.367,1798.0]
[1672756810128,0.06788304,12.376,12.368,5.0]
[1672756810333,0.06788304,12.376,12.368,1803.07097339]
[1672756810538,0.06788304,12.376,12.369,5.0]
[1672756812750,1.5,12.375,12.369,5.0]
[1672756813694,0.06788304,12.376,12.371,5.0]
[1672756813904,5.0,12.394,12.373,5.0]
[1672756814114,48.65,12.393,12.374,1798.0]
[1672756814325,5.0,12.392,12.375,5.0]
[1672756814534,48.66,12.391,12.376,1798.0]
[1672756814740,5.0,12.39,12.377,5.0]